fUSD/lending_fUSD_20241119
["ID","MTS","AMOUNT","RATE_DAILY","PERIOD"]
[342704707,1732053063212,-221.66,0.00057808,120]
[342704709,1732053063221,-5162.22,0.00057808,120]
[342704711,1732053063230,-359.17,0.00057808,120]
[342704713,1732053063239,-500.0,0.00057808,120]
[342704715,1732053063249,-594.7,0.00057808,120]
[342704717,1732053063259,-548.17,0.00057808,120]
[342704720,1732053063273,-500.0,0.00057808,120]
[342704721,1732053063282,-428.16,0.00057808,120]
[342704723,1732053063292,-985.5,0.00057808,120]
[342704725,1732053063301,-500.0,0.00057808,120]
[342704727,1732053063312,-793.68,0.00057808,120]
[342704729,1732053063326,-500.0,0.00057808,120]
[342704731,1732053063335,-576.89,0.00057808,120]
[342704733,1732053063347,-500.0,0.00057808,120]
[342704735,1732053063356,-500.0,0.00057808,120]
[342704737,1732053063365,-500.0,0.00057808,120]
[342704739,1732053063375,-594.69,0.00057808,120]
[342704741,1732053063384,-726.4,0.00057808,120]
[342704743,1732053063394,-500.0,0.00057808,120]
[342704745,1732053063404,-323.39628505,0.00057808,120]
[342704747,1732053063413,-262.77,0.00057918,120]
[342704749,1732053063422,-500.0,0.00057981,120]
[342704751,1732053063431,-150.0,0.00057987,14]
[342704753,1732053063441,-500.0,0.00057999,120]
[342704755,1732053063450,-50000.0,0.00058,38]
[342704757,1732053063459,-50000.0,0.00058,48]
[342704759,1732053063469,-50000.0,0.00058,58]
[342704761,1732053063478,-159.3735073,0.00058,120]
[342704763,1732053063488,-900.0,0.00058,61]
[342704765,1732053063498,-21189.99085483,0.00058,120]
[342704767,1732053063507,-2000.0,0.00058,120]
[342704769,1732053063517,-150.0,0.00058021,14]
[342704771,1732053063526,-150.0,0.00058032,14]
[342704773,1732053063536,-150.0,0.00058053,14]
[342704775,1732053063546,-150.0,0.00058055,14]
[342704777,1732053063555,-150.0,0.00058059,14]
[342704779,1732053063564,-150.0,0.00058067,14]
[342704781,1732053063575,-150.0,0.00058069,14]
[342704783,1732053063585,-500.0,0.00058082,120]
[342704785,1732053063595,-500.0,0.00058082,120]
[342704787,1732053063604,-500.0,0.00058082,120]
[342704789,1732053063614,-551.16,0.00058082,120]
[342704791,1732053063623,-572.44,0.00058082,120]
[342704793,1732053063633,-513.57,0.00058082,120]
[342704795,1732053063642,-500.0,0.00058082,120]
[342704797,1732053063651,-500.0,0.00058082,120]
[342704799,1732053063660,-514.58,0.00058082,120]
[342704801,1732053063669,-500.0,0.00058082,120]
[342704803,1732053063679,-987.71,0.00058082,120]
[342704805,1732053063688,-500.0,0.00058082,7]
[342704807,1732053063697,-1069.29,0.00058082,3]
[342704808,1732053063707,-581.13,0.00058082,120]
[342704810,1732053063716,-500.0,0.00058082,120]
[342704812,1732053063726,-500.0,0.00058082,120]
[342704813,1732053063735,-1262.81,0.00058082,120]
[342704814,1732053063745,-1719.86,0.00058082,120]
[342704815,1732053063754,-666.47,0.00058082,120]
[342704816,1732053063763,-383.4,0.00058082,120]
[342704817,1732053063771,-5162.22,0.00058082,120]
[342704818,1732053063780,-500.0,0.00058082,120]
[342704819,1732053063789,-594.7,0.00058082,120]
[342704820,1732053063799,-548.17,0.00058082,120]
[342704821,1732053063808,-500.0,0.00058082,120]
[342704822,1732053063820,-985.5,0.00058082,120]
[342704824,1732053063829,-500.0,0.00058082,120]
[342704826,1732053063838,-793.68,0.00058082,120]
[342704827,1732053063847,-500.0,0.00058082,120]
[342704829,1732053063856,-576.89,0.00058082,120]
[342704831,1732053063865,-500.0,0.00058082,120]
[342704833,1732053063874,-500.0,0.00058082,120]
[342704835,1732053063884,-500.0,0.00058082,120]
[342704837,1732053063894,-594.69,0.00058082,120]
[342704839,1732053063903,-726.4,0.00058082,120]
[342704841,1732053063912,-500.0,0.00058082,120]
[342704843,1732053063922,-150.0,0.00058096,14]
[342704845,1732053063931,-800.0,0.00058106,120]
[342704847,1732053063940,-401.31011042,0.00058132,2]
[342704849,1732053063950,-150.0,0.0005822,14]
[342704851,1732053063959,-150.0,0.00058226,14]
[342704853,1732053063968,-150.0,0.00058242,14]
[342704855,1732053063978,-150.0,0.00058248,14]
[342704857,1732053063987,-500.0,0.00058255,120]
[342704859,1732053063996,-170.95766075,0.00058282,14]
[342704861,1732053064005,-150.0,0.00058315,14]
[342704863,1732053064014,-2799.49763314,0.0005833,2]
[342704875,1732053064115,-500.0,0.00058356,120]
[342704877,1732053064125,-500.0,0.00058356,120]
[342704879,1732053064135,-324.97235663,0.00058356,120]
[342704881,1732053064145,-513.57,0.00058356,120]
[342704883,1732053064155,-500.0,0.00058356,120]
[342704885,1732053064165,-500.0,0.00058356,120]
[342704887,1732053064175,-514.58,0.00058356,120]
[342704889,1732053064184,-500.0,0.00058356,120]
[342704891,1732053064194,-987.71,0.00058356,120]
[342704893,1732053064204,-500.0,0.00058356,7]
[342704895,1732053064213,-1069.29,0.00058356,3]
[342704897,1732053064223,-581.13,0.00058356,120]
[342704899,1732053064232,-500.0,0.00058356,120]
[342704901,1732053064242,-500.0,0.00058356,120]
[342704903,1732053064251,-1262.81,0.00058356,120]
[342704904,1732053064262,-1719.86,0.00058356,120]
[342704907,1732053064275,-666.47,0.00058356,120]
[342704909,1732053064285,-5162.22,0.00058356,120]
[342704910,1732053064295,-500.0,0.00058356,120]
[342704912,1732053064305,-594.7,0.00058356,120]
[342704915,1732053064317,-548.17,0.00058356,120]
[342704917,1732053064327,-500.0,0.00058356,120]
[342704918,1732053064336,-985.5,0.00058356,120]
[342704920,1732053064347,-500.0,0.00058356,120]
[342704923,1732053064357,-793.68,0.00058356,120]
[342704925,1732053064367,-500.0,0.00058356,120]
[342704927,1732053064376,-576.89,0.00058356,120]
[342704929,1732053064385,-313.74584553,0.00058356,120]
[342704931,1732053064395,-500.0,0.00058356,120]
[342704933,1732053064404,-500.0,0.00058356,120]
[342704934,1732053064414,-594.69,0.00058356,120]
[342704936,1732053064424,-726.4,0.00058356,120]
[342704938,1732053064434,-500.0,0.00058356,120]
[342704940,1732053064443,-150.0,0.00058359,14]
[342704942,1732053064453,-800.0,0.0005838,120]
[342704944,1732053064462,-3000.0,0.0005841,98]
[342704946,1732053064472,-150.0,0.00058426,14]
[342704948,1732053064481,-10872.19642171,0.00058456,15]
[342704950,1732053064491,-500.0,0.00058459,120]
[342704952,1732053064500,-31044.8437,0.0005846,2]
[342704954,1732053064509,-4653.5477,0.0005846,2]
[342704956,1732053064518,-63056.6063,0.0005846,2]
[342704958,1732053064527,-431.0916,0.0005846,2]
[342704960,1732053064537,-500.0,0.0005846,2]
[342704962,1732053064546,-1000.0,0.0005846,2]
[342704964,1732053064555,-1951.3651,0.0005846,2]
[342704966,1732053064565,-150.0,0.00058499,14]
[342704968,1732053064576,-500.0,0.00058529,120]
[342704970,1732053064585,-150.0,0.00058535,14]
[342704972,1732053064594,-500.0,0.00058559,120]
[342704974,1732053064604,-500.0,0.00058559,120]
[342704976,1732053064613,-610329.18105595,0.0005856,120]
[342704978,1732053064623,-297.514788,0.0005856,120]
[342704980,1732053064633,-151.0,0.0005856,120]
[342704982,1732053064642,-151.0,0.0005856,120]
[342704984,1732053064652,-294.725395,0.0005856,120]
[342704986,1732053064661,-151.0,0.0005856,30]
[342704988,1732053064671,-151.0,0.0005856,120]
[342704990,1732053064680,-151.0,0.0005856,120]
[342704992,1732053064689,-151.0,0.0005856,120]
[342704994,1732053064698,-151.0,0.0005856,120]
[342704996,1732053064708,-150.0,0.00058561,14]
[342704998,1732053064717,-150.0,0.00058589,14]
[342704999,1732053064727,-500.0,0.0005863,120]
[342705001,1732053064737,-513.57,0.0005863,120]
[342705003,1732053064747,-500.0,0.0005863,120]
[342705005,1732053064757,-500.0,0.0005863,120]
[342705007,1732053064767,-514.58,0.0005863,120]
[342705010,1732053064777,-500.0,0.0005863,120]
[342705012,1732053064787,-987.71,0.0005863,120]
[342705013,1732053064797,-206.34,0.0005863,7]
[342705016,1732053064807,-1069.29,0.0005863,3]
[342705018,1732053064816,-581.13,0.0005863,120]
[342705019,1732053064830,-500.0,0.0005863,120]
[342705022,1732053064839,-500.0,0.0005863,120]
[342705023,1732053064849,-1262.81,0.0005863,120]
[342705025,1732053064859,-1719.86,0.0005863,120]
[342705027,1732053064868,-666.47,0.0005863,120]
[342705029,1732053064878,-5162.22,0.0005863,120]
[342705031,1732053064887,-500.0,0.0005863,120]
[342705033,1732053064897,-594.7,0.0005863,120]
[342705035,1732053064906,-548.17,0.0005863,120]
[342705037,1732053064916,-500.0,0.0005863,120]
[342705039,1732053064926,-985.5,0.0005863,120]
[342705041,1732053064935,-500.0,0.0005863,120]
[342705043,1732053064944,-793.68,0.0005863,120]
[342705045,1732053064954,-359.23867682,0.0005863,120]
[342705047,1732053064964,-576.89,0.0005863,120]
[342705049,1732053064973,-500.0,0.0005863,120]
[342705051,1732053064983,-500.0,0.0005863,120]
[342705053,1732053064992,-594.69,0.0005863,120]
[342705055,1732053065001,-726.4,0.0005863,120]
[342705057,1732053065011,-536.09989996,0.0005863,120]
[342705059,1732053065020,-150.0,0.00058634,14]
[342705061,1732053065031,-1500.0,0.00058643,30]
[342705063,1732053065040,-800.0,0.00058654,120]
[342705065,1732053065050,-150.0,0.00058767,15]
[342705067,1732053065059,-150.0,0.00058787,14]
[342705069,1732053065070,-161.12080962,0.00058799,74]
[342705071,1732053065079,-39927.88539209,0.000588,120]
[342705073,1732053065088,-500.0,0.000588,120]
[342705075,1732053065098,-500.0,0.000588,120]
[342705077,1732053065107,-500.0,0.000588,120]
[342705079,1732053065117,-500.0,0.000588,120]
[342705080,1732053065126,-500.0,0.00058803,120]
[342705082,1732053065135,-401.31011042,0.00058836,2]
[342705084,1732053065145,-150.0,0.00058847,14]
[342705087,1732053065154,-322.42617439,0.00058883,30]
[342705089,1732053065164,-200.0,0.00058896,120]
[342705091,1732053065173,-1000.0,0.00058899,120]
[342705092,1732053065182,-2953.52945044,0.000589,37]
[342705094,1732053065192,-230.08,0.000589,120]
[342705096,1732053065201,-300.0,0.000589,21]
[342705098,1732053065211,-750.7017,0.000589,30]
[342705100,1732053065220,-10000.0,0.000589,120]
[342705102,1732053065230,-68817.91803341,0.00058904,120]
[342705117,1732053065372,-8473.46099734,0.00058904,120]
[342705119,1732053065379,-500.0,0.00058904,120]
[342705121,1732053065389,-513.57,0.00058904,120]
[342705123,1732053065398,-360.28,0.00058904,120]
[342705125,1732053065408,-500.0,0.00058904,120]
[342705126,1732053065418,-514.58,0.00058904,120]
[342705129,1732053065427,-500.0,0.00058904,120]
[342705131,1732053065438,-987.71,0.00058904,120]
[342705132,1732053065448,-1069.29,0.00058904,3]
[342705134,1732053065457,-581.13,0.00058904,120]
[342705136,1732053065466,-383.23,0.00058904,120]
[342705138,1732053065477,-500.0,0.00058904,120]
[342705141,1732053065486,-335.53389929,0.00058904,120]
[342705146,1732053065526,-927.27610071,0.00058904,120]
[342705148,1732053065536,-1719.86,0.00058904,120]
[342705150,1732053065545,-666.47,0.00058904,120]
[342705152,1732053065554,-5162.22,0.00058904,120]
[342705154,1732053065563,-298.88,0.00058904,120]
[342705156,1732053065580,-594.7,0.00058904,120]
[342705158,1732053065589,-548.17,0.00058904,120]
[342705160,1732053065599,-500.0,0.00058904,120]
[342705162,1732053065607,-985.5,0.00058904,120]
[342705164,1732053065615,-500.0,0.00058904,120]
[342705166,1732053065624,-360.67309284,0.00058904,120]
[342705190,1732053065852,-425.50231827,0.0004381,2]
[342705192,1732053065864,-74.49768173,0.0004381,2]
[342705193,1732053065874,-246.142488,0.0005856,120]
[342705194,1732053065883,-433.00690716,0.00058904,120]
[342705195,1732053065893,-576.89,0.00058904,120]
[342705196,1732053065903,-500.0,0.00058904,120]
[342705197,1732053065912,-169.62160325,0.00058904,120]
[342705198,1732053065922,-594.69,0.00058904,120]
[342705199,1732053065932,-726.4,0.00058904,120]
[342705200,1732053065941,-200.0,0.00058955,120]
[342705201,1732053065951,-200.0,0.00058963,120]
[342705202,1732053065960,-200.0,0.00058977,120]
[342705204,1732053065969,-35082.86674969,0.00059,39]
[342705206,1732053065980,-14917.13325031,0.00059,39]
[342705208,1732053065990,-1228.12437933,0.00059,49]
[342705210,1732053066001,-1404.63219694,0.00059,49]
[342705212,1732053066012,-47367.24342373,0.00059,49]
[342705214,1732053066021,-50000.0,0.00059,59]
[342705216,1732053066031,-900.0,0.00059,60]
[342705218,1732053066040,-1402.94287266,0.00059,120]
[342705220,1732053066050,-51902.08955831,0.00059,120]
[342705222,1732053066060,-200.0,0.00059,120]
[342705224,1732053066072,-151.0,0.00059,7]
[342705226,1732053066082,-155.706404,0.00059,120]
[342705229,1732053066092,-800.0,0.00059,2]
[342705230,1732053066101,-151.0,0.00059,120]
[342705232,1732053066111,-221.857986,0.00059,120]
[342705234,1732053066121,-221.857986,0.00059,120]
[342705236,1732053066130,-4201.4487411,0.00059012,2]
[342705238,1732053066139,-1043.7275444,0.00059012,2]
[342705240,1732053066149,-860.1195734,0.00059012,2]
[342705242,1732053066158,-5346.2742243,0.00059012,2]
[342705244,1732053066167,-2000.0,0.00059052,120]
[342705246,1732053066177,-500.0,0.00059052,120]
[342705248,1732053066187,-500.0,0.00059077,120]
[342705250,1732053066197,-569.44503556,0.0005909,2]
[342705252,1732053066206,-500.0,0.00059178,120]
[342705254,1732053066216,-513.57,0.00059178,120]
[342705256,1732053066226,-500.0,0.00059178,120]
[342705258,1732053066235,-514.58,0.00059178,120]
[342705260,1732053066245,-987.71,0.00059178,120]
[342705262,1732053066254,-1069.29,0.00059178,3]
[342705264,1732053066267,-581.13,0.00059178,120]
[342705267,1732053066277,-189.10636915,0.00059178,120]
[342705268,1732053066286,-1262.81,0.00059178,120]
[342705270,1732053066296,-1719.86,0.00059178,120]
[342705272,1732053066305,-666.47,0.00059178,120]
[342705274,1732053066314,-3389.42384652,0.00059178,120]
[342705277,1732053066328,-1772.79615348,0.00059178,120]
[342705279,1732053066338,-594.7,0.00059178,120]
[342705280,1732053066348,-548.17,0.00059178,120]
[342705282,1732053066358,-500.0,0.00059178,120]
[342705285,1732053066367,-985.5,0.00059178,120]
[342705287,1732053066376,-500.0,0.00059178,120]
[342705289,1732053066386,-358.83384652,0.00059178,120]
[342705291,1732053066398,-434.84615348,0.00059178,120]
[342705293,1732053066408,-576.89,0.00059178,120]
[342705295,1732053066417,-500.0,0.00059178,120]
[342705297,1732053066427,-594.69,0.00059178,120]
[342705299,1732053066437,-641.86769715,0.00059178,120]
[342705301,1732053066448,-84.53230285,0.00059178,120]
[342705303,1732053066458,-598.7809057,0.00059202,120]
[342705305,1732053066470,-201.2190943,0.00059202,120]
[342705307,1732053066480,-500.0,0.00059202,120]
[342705309,1732053066489,-407.0649057,0.00059202,120]
[342705312,1732053066503,-786.04256192,0.00059202,120]
[342705325,1732053066624,-500.0,0.00054794,120]
[342705327,1732053066634,-606.89253238,0.00059202,120]
[342705329,1732053066643,-900.0,0.00059202,120]
[342705331,1732053066653,-580.56,0.00059344,2]
[342705333,1732053066662,-286.60055158,0.00059351,120]
[342705335,1732053066677,-500.0,0.00043903,2]
[342705337,1732053066688,-201.93119187,0.00059351,120]
[342705339,1732053066698,-417.04723313,0.0005944,30]
[342705342,1732053066709,-1764.09695905,0.0005944,30]
[342705344,1732053066720,-633.02,0.00059452,120]
[342705346,1732053066730,-513.57,0.00059452,120]
[342705348,1732053066740,-500.0,0.00059452,120]
[342705350,1732053066750,-514.58,0.00059452,120]
[342705352,1732053066760,-972.78751999,0.00059452,120]
[342705354,1732053066771,-14.92248001,0.00059452,120]
[342705356,1732053066781,-1069.29,0.00059452,3]
[342705358,1732053066790,-581.13,0.00059452,120]
[342705360,1732053066800,-1262.81,0.00059452,120]
[342705362,1732053066809,-1719.86,0.00059452,120]
[342705364,1732053066822,-82.16410228,0.00059452,120]
[342705366,1732053066833,-584.30589772,0.00059452,120]
[342705368,1732053066842,-2953.74540725,0.00059452,120]
[342705370,1732053066854,-1487.15277705,0.00059452,120]
[342705373,1732053066866,-721.3218157,0.00059452,120]
[342705375,1732053066875,-594.7,0.00059452,120]
[342705377,1732053066884,-548.17,0.00059452,120]
[342705379,1732053066893,-500.0,0.00059452,120]
[342705380,1732053066903,-275.79005876,0.00059452,120]
[342705383,1732053066914,-709.70994124,0.00059452,120]
[342705385,1732053066924,-500.0,0.00059452,120]
[342705387,1732053066933,-793.68,0.00059452,120]
[342705389,1732053066943,-576.89,0.00059452,120]
[342705391,1732053066952,-500.0,0.00059452,120]
[342705392,1732053066961,-594.69,0.00059452,120]
[342705394,1732053066971,-726.4,0.00059452,120]
[342705396,1732053066980,-1800.0,0.00059476,120]
[342705399,1732053066990,-900.0,0.00059476,120]
[342705400,1732053066999,-15653.39959339,0.0005948,120]
[342705403,1732053067010,-715.58487265,0.0005948,120]
[342705405,1732053067021,-2118.4664453,0.0005948,120]
[342705407,1732053067032,-6512.54908866,0.0005948,120]
[342705409,1732053067042,-150.11050699,0.00059498,120]
[342705411,1732053067051,-401.31011042,0.00059539,2]
[342705413,1732053067060,-5147.1966865,0.000596,30]
[342705415,1732053067076,-1817.67063,0.000596,30]
[342705417,1732053067087,-1342.95,0.000596,30]
[342705420,1732053067098,-1765.7713395,0.000596,30]
[342705422,1732053067110,-11732.035,0.000596,30]
[342705425,1732053067130,-500.0,0.00043914,2]
[342705427,1732053067139,-4652.19554345,0.000596,30]
[342705429,1732053067154,-3917.8942744,0.000596,30]
[342705432,1732053067165,-2432.1052997,0.000596,30]
[342705434,1732053067177,-4887.63038226,0.000596,30]
[342705436,1732053067188,-1618.39,0.000596,30]
[342705438,1732053067200,-225136.67148818,0.000596,30]
[342705454,1732053067356,-500.0,0.00044701,120]
[342705456,1732053067366,-106.13570382,0.000496,2]
[342705473,1732053067513,-143.86429618,0.000496,2]
[342705475,1732053067524,-500.0,0.00054794,120]
[342705477,1732053067533,-172.88,0.00055058,10]
[342705479,1732053067542,-109.92472478,0.0005856,120]
[342705486,1732053067598,-105.31359506,0.0005856,120]
[342705489,1732053067614,-30.90416816,0.0005856,120]
[342705491,1732053067624,-150.0,0.00058732,14]
[342705493,1732053067633,-2123.45577651,0.000596,30]
[342705509,1732053067773,-150.0,0.00058657,14]
[342705511,1732053067783,-150.0,0.00058895,14]
[342705513,1732053067792,-107.82269628,0.000596,30]
[342705515,1732053067804,-2653.57553941,0.000596,30]
[342705517,1732053067815,-20268.3972078,0.000596,30]
[342705518,1732053067842,-150.0,0.00058776,14]
[342705519,1732053067851,-150.0,0.00058811,14]
[342705520,1732053067861,-150.0,0.00058821,14]
[342705521,1732053067871,-10.4323149,0.000596,30]
[342705522,1732053067882,-9256.47600001,0.000596,30]
[342705523,1732053067893,-8469.76999176,0.000596,30]
[342706166,1732054035147,-152.29,0.00015342,2]
[342706167,1732054035169,-155.41,0.00015342,2]
[342706168,1732054035190,-213.59550024,0.0002,2]
[342706169,1732054045100,-364.54377534,0.0002,2]
[342706170,1732054045122,-152.29,0.000221,2]
[342706171,1732054045144,-4843.78860282,0.0002361,2]
[342706172,1732054045165,-155.41,0.000247,2]
[342706173,1732054045186,-5113.7223361,0.00025214,2]
[342706174,1732054049085,-523.52908637,0.00025214,2]
[342706181,1732054150098,-150.0,0.00016862,2]
[342706182,1732054150120,-431.2281118,0.00025214,2]
[342706183,1732054155096,-2431.52046573,0.00025214,2]
[342706184,1732054155117,-152.29,0.00028858,2]
[342706185,1732054155138,-151.0,0.0003,120]
[342706186,1732054155159,-155.41,0.00034057,2]
[342706187,1732054155181,-152.29,0.00035616,2]
[342706188,1732054155201,-180.35662328,0.00037,2]
[342706189,1732054158124,-69.64337672,0.00037,2]
[342706190,1732054158147,-151.0,0.00038575,120]
[342706191,1732054158169,-400.0,0.0003861,5]
[342706192,1732054158191,-321.0,0.0003861,5]
[342706193,1732054158213,-150.0,0.0003861,4]
[342706194,1732054158234,-173.43,0.00038611,2]
[342706195,1732054158255,-719.04560073,0.00038611,2]
[342706198,1732054163108,-1899.79439927,0.00038611,2]
[342706199,1732054163128,-150.99,0.00038611,2]
[342706200,1732054163149,-3576.37305273,0.00038611,10]
[342706201,1732054166162,-9620.91511075,0.00038611,10]
[342706211,1732054232236,-150.0,0.00038511,2]
[342706212,1732054232245,-400.0,0.0003861,5]
[342706213,1732054232256,-4150.59999934,0.00038611,10]
[342706214,1732054232345,-6147.13183718,0.00038611,10]
[342706215,1732054232354,-999.99,0.00038611,2]
[342706216,1732054232364,-1873.57,0.00038611,2]
[342706217,1732054232373,-300.0,0.00039,2]
[342706218,1732054232382,-311.78,0.00039178,2]
[342706219,1732054232392,-150.0,0.00039178,2]
[342706220,1732054232402,-7903.9828325,0.0003999,2]
[342706221,1732054232411,-5561.45,0.0004,120]
[342706222,1732054232420,-2438.9,0.0004,120]
[342706223,1732054232430,-3180.36,0.0004,120]
[342706224,1732054232439,-2194.87,0.0004,120]
[342706225,1732054232448,-500.0,0.0004,5]
[342706226,1732054232458,-500.0,0.0004085,5]
[342706227,1732054232467,-350.0,0.00041,2]
[342706228,1732054232476,-560.0,0.00041244,5]
[342706229,1732054232485,-152.29,0.00042374,2]
[342706230,1732054232494,-150.0,0.0004246,2]
[342706231,1732054232505,-400.0,0.00043,2]
[342706232,1732054232515,-13884.95262291,0.00043,30]
[342706233,1732054232524,-1258.868,0.00043,66]
[342706234,1732054232533,-175.38,0.00043,66]
[342706235,1732054232543,-262.72857308,0.00043,30]
[342706236,1732054232553,-155.41,0.00043414,2]
[342706237,1732054232562,-150.0,0.00044,57]
[342706238,1732054232572,-1032.0,0.00044,60]
[342706239,1732054232587,-460.0,0.00044057,5]
[342706240,1732054232597,-450.0,0.00045,2]
[342706241,1732054232606,-800.0,0.00045,120]
[342706242,1732054232615,-338.01,0.00045492,2]
[342706244,1732054232624,-250.0,0.00046963,120]
[342706246,1732054232637,-500.0,0.00047,2]
[342706248,1732054232646,-1835.163,0.00047,30]
[342706250,1732054232655,-368.14,0.00047105,2]
[342706252,1732054232664,-151.0,0.00047151,120]
[342706254,1732054232674,-168.96,0.00047175,2]
[342706256,1732054232684,-300.0,0.00047175,2]
[342706258,1732054232693,-250.0,0.00047175,120]
[342706260,1732054232703,-157.0,0.00047175,2]
[342706262,1732054232715,-200.0,0.00047185,2]
[342706264,1732054232724,-1034.49,0.00047228,2]
[342706266,1732054232733,-2751.0,0.00047244,120]
[342706268,1732054232743,-150.0,0.00047329,2]
[342706270,1732054232752,-303.3,0.00047349,120]
[342706271,1732054232762,-200.0,0.00047384,2]
[342706273,1732054232771,-1947.6706,0.00047479,20]
[342706275,1732054232780,-23900.0,0.000475,2]
[342706278,1732054232790,-150.48,0.00047603,2]
[342706279,1732054232799,-236.06,0.00047606,120]
[342706282,1732054232809,-1000.0,0.00047627,2]
[342706284,1732054232818,-157.54,0.00047671,120]
[342706286,1732054232827,-338.01,0.00047756,2]
[342706287,1732054232837,-2198.67,0.00047785,2]
[342706289,1732054232846,-368.23,0.00047873,120]
[342706292,1732054232856,-1471.17,0.00047875,120]
[342706293,1732054232865,-250.0,0.00047875,2]
[342706295,1732054232874,-160.71620851,0.000481,10]
[342706297,1732054232883,-250.0,0.00048105,120]
[342706299,1732054232892,-550.0,0.00049,2]
[342706301,1732054232901,-152.29,0.00049132,2]
[342706303,1732054232911,-150.0,0.000496,2]
[342706305,1732054232920,-500.0,0.0005,120]
[342706307,1732054232929,-238.94,0.0005001,10]
[342706309,1732054232939,-338.01,0.0005002,2]
[342706311,1732054232948,-150.0,0.00050278,30]
[342706313,1732054232957,-272.96,0.00050468,120]
[342706315,1732054232967,-286.72,0.00050905,10]
[342706317,1732054232976,-1902.459,0.00050915,2]
[342706319,1732054232985,-2596.7491,0.00050938,2]
[342706321,1732054232994,-515.74,0.0005095,2]
[342706323,1732054233005,-260.03,0.00050954,10]
[342706325,1732054233014,-515.74,0.00050964,2]
[342706327,1732054233024,-515.74,0.00050977,2]
[342706329,1732054233033,-515.74,0.00050991,2]
[342706331,1732054233045,-600.0,0.00051,2]
[342706333,1732054233055,-515.74,0.00051004,2]
[342706335,1732054233064,-25498.9721001,0.00051015,30]
[342706337,1732054233075,-515.74,0.00051017,2]
[342706339,1732054233084,-515.74,0.00051031,2]
[342706341,1732054233093,-515.74,0.00051044,2]
[342706343,1732054233103,-515.74,0.00051057,2]
[342706345,1732054233112,-515.74,0.00051071,2]
[342706347,1732054233122,-515.74,0.00051084,2]
[342706349,1732054233132,-515.74,0.00051098,2]
[342706351,1732054233141,-515.74,0.00051111,2]
[342706353,1732054233151,-515.74,0.00051124,2]
[342706354,1732054233160,-515.74,0.00051138,2]
[342706356,1732054233170,-515.74,0.00051151,2]
[342706359,1732054233180,-515.74,0.00051165,2]
[342706360,1732054233189,-157.54,0.00051177,120]
[342706363,1732054233199,-515.74,0.00051178,2]
[342706365,1732054233209,-515.74,0.00051191,2]
[342706366,1732054233218,-515.74,0.00051205,2]
[342706368,1732054233228,-200.0,0.00051659,120]
[342706370,1732054233238,-156.62,0.000521,7]
[342706372,1732054233248,-338.01,0.00052284,2]
[342706374,1732054233260,-183.756834,0.00052739,30]
[342706376,1732054233269,-155.41,0.00052771,2]
[342706378,1732054233278,-650.0,0.00053,2]
[342706380,1732054233288,-1159.0,0.00053116,120]
[342706382,1732054233297,-1359.675,0.00053116,120]
[342706384,1732054233307,-150.0,0.00053116,120]
[342706386,1732054233317,-303.3,0.00053268,120]